bitfinex/quotes_ETHUSD_20250801
["timestamp","ask_amount","ask_price","bid_price","bid_amount"]
[1754044734348,1.0486,3628.5,3627.7,0.1376]
[1754044734349,0.1376,3628.2,3627.7,0.1376]
[1754044734521,4.255,3628.1,3627.7,0.1376]
[1754044734838,5.3036,3628.1,3627.7,0.1376]
[1754044735167,2.75649153,3627.8,3627.7,0.1376]
[1754044735450,2.7569475,3627.2,3627.1,0.1376]
[1754044735604,2.7569475,3627.2,3626.2,3.01911392]
[1754044735605,7.156,3627.2,3626.9,0.1376]
[1754044735802,2.75709635,3627.1,3626.9,0.1376]
[1754044736015,3.21179635,3627.1,3626.9,0.1376]
[1754044736238,3.80569953,3627.0,3626.9,0.34032395]
[1754044736401,3.80569953,3627.0,3626.9,0.1376]
[1754044736602,1.0486,3627.0,3626.2,0.6081]
[1754044736806,4.8499,3626.9,3625.7,0.4327]
[1754044737044,0.1376,3626.6,3626.1,0.1376]
[1754044737252,2.75772393,3626.2,3626.1,0.1376]
[1754044737406,2.75778625,3626.1,3625.7,0.2104446]
[1754044737627,2.75808893,3625.7,3625.0,1.08884062]
[1754044737868,2.75811203,3625.7,3625.4,0.1376]
[1754044738056,4.257,3625.6,3625.4,0.34939002]
[1754044738254,5.3056,3625.6,3625.4,0.1376]
[1754044738832,4.7117,3625.6,3625.3,0.1376]
[1754044739467,4.7117,3625.6,3625.0,0.6081]
[1754044739468,2.75838952,3625.4,3625.2,0.1376]
[1754044739669,2.75846849,3625.2,3624.8,0.20493872]
[1754044739962,2.75846849,3625.2,3624.7,0.1376]
[1754044739963,2.75867291,3625.0,3624.7,0.1376]
[1754044740271,1.0486,3626.0,3624.9,3.0]
[1754044740478,0.1376,3625.7,3624.4,6.19176849]
[1754044740681,2.75792637,3626.0,3624.4,6.19176849]
[1754044740682,4.258,3625.6,3625.0,0.1376]
[1754044740839,2.75843426,3625.3,3625.0,0.1376]
[1754044741178,7.01739669,3625.3,3625.0,0.1376]
[1754044741338,4.259,3625.3,3625.0,0.1376]
[1754044741973,2.75847362,3625.2,3625.0,0.1376]
[1754044742287,2.75876082,3624.9,3624.7,0.20475941]
[1754044742483,0.1376,3624.9,3624.7,0.20475941]
[1754044742770,4.262,3625.9,3625.2,2.758411]
[1754044742965,4.262,3625.9,3625.6,0.1376]
[1754044743130,4.265,3626.1,3625.7,0.6081]
[1754044743337,4.265,3626.1,3625.8,0.1376]
[1754044743546,4.265,3626.1,3625.8,0.7457]
[1754044745095,4.267,3626.3,3625.9,1.0408]
[1754044745266,4.267,3626.3,3625.8,0.1376]
[1754044745454,4.267,3626.3,3625.8,0.7457]
[1754044745857,4.266,3626.5,3626.0,2.7578135]
[1754044746087,4.8599,3626.5,3626.3,0.1376]
[1754044746287,5.3146,3626.5,3626.3,0.1376]
[1754044746495,4.266,3626.5,3626.3,0.1376]
[1754044747566,0.5939,3626.4,3626.0,3.0]
[1754044747771,0.5939,3626.4,3626.0,0.1376]
[1754044747772,1.0486,3626.4,3626.0,0.1376]
[1754044747980,1.0486,3626.3,3625.8,3.0]
[1754044748287,5.3146,3626.2,3625.9,0.1376]
[1754044748494,5.4522,3626.2,3625.7,3.1376]
[1754044749001,5.4522,3626.2,3625.6,0.1376]
[1754044749002,2.75787214,3626.0,3625.6,0.1376]
[1754044749297,2.75808809,3625.7,3625.6,0.1376]
[1754044749464,2.8956687,3625.8,3625.2,0.1376]
[1754044749789,0.1376,3625.8,3625.2,0.1376]
[1754044750696,2.7583924,3625.3,3625.2,0.1376]
[1754044750858,1.0486,3625.3,3624.7,0.20973327]
[1754044751063,2.758849,3624.7,3624.6,0.1376]
[1754044751254,1.0486,3625.0,3624.3,0.20482396]
[1754044751593,0.1376,3625.1,3624.3,0.20482396]
[1754044751594,2.75907736,3624.4,3624.3,0.20482396]
[1754044751760,2.75907736,3624.4,3624.1,0.01]
[1754044751761,2.75922962,3624.2,3624.1,0.01]
[1754044751955,2.89682962,3624.2,3624.1,0.21839778]
[1754044752192,0.1376,3624.2,3624.1,0.21839778]
[1754044752411,0.1376,3624.5,3624.1,0.82649778]
[1754044752605,4.27,3624.5,3624.1,0.65109778]
[1754044752770,4.27,3624.5,3624.3,0.1376]
[1754044752970,2.75922962,3624.2,3624.1,0.01]
[1754044753166,2.75922962,3624.2,3624.1,0.22200263]
[1754044753520,3.80782962,3624.2,3624.1,0.01]
[1754044755316,2.75999116,3623.2,3623.1,0.01]
[1754044755625,7.17059116,3623.2,3623.1,0.01]
[1754044755771,7.76449116,3623.2,3623.1,0.01]
[1754044756124,9.12372763,3623.2,3623.1,0.01]
[1754044758996,2.7606007,3622.4,3622.3,0.20255644]
[1754044759172,2.76075313,3622.2,3622.1,0.01]
[1754044759812,2.89915313,3622.2,3622.1,0.01]
[1754044760017,4.272,3622.6,3622.1,1.082]
[1754044760221,4.4104,3622.6,3622.2,1.072]
[1754044760418,4.4104,3622.6,3622.1,0.85350436]
[1754044760419,7.17084897,3622.6,3622.3,1.072]
[1754044760635,2.7605746,3622.5,3622.4,0.6311]
[1754044760987,4.4104,3622.6,3622.4,0.6311]
[1754044761224,7.17085896,3622.6,3622.4,0.6311]
[1754044761386,4.4104,3622.6,3622.5,0.6311]
[1754044761588,7.17084829,3622.6,3622.5,0.6311]
[1754044762233,2.76075313,3622.2,3622.1,0.1484]
[1754044762522,4.275,3622.2,3622.1,0.1484]
[1754044763021,4.275,3622.2,3622.1,0.6411]
[1754044763319,4.273,3622.2,3622.1,0.7795]
[1754044764019,4.273,3622.2,3622.1,0.1484]
[1754044764524,8.24415313,3622.2,3622.1,0.01]
[1754044764718,8.67145313,3622.2,3622.1,0.01]
[1754044766423,9.22145313,3622.2,3622.1,0.01]
[1754044766823,8.67945313,3622.2,3622.1,0.01]
[1754044767424,0.5657,3622.2,3622.1,0.01]
[1754044767647,4.4194,3622.2,3622.1,0.6411]
[1754044767848,4.281,3622.2,3622.1,0.6411]
[1754044768006,0.1384,3622.4,3622.3,2.76067691]
[1754044768207,4.281,3622.4,3622.1,0.01]
[1754044768637,4.281,3622.4,3622.1,3.40191967]
[1754044768853,3.0,3623.8,3622.1,0.01]
[1754044768854,0.1384,3622.5,3622.1,0.01]
[1754044769037,0.1384,3622.5,3622.3,2.7606269]
[1754044769242,4.283,3622.4,3622.1,0.01]
[1754044769445,3.83183882,3623.4,3622.5,2.76047078]
[1754044769652,0.1384,3622.6,3622.5,5.76047078]
[1754044769862,0.14411578,3624.0,3623.9,2.75938411]
[1754044769863,0.1376,3624.0,3623.9,2.75938411]
[1754044770149,4.4386,3624.3,3624.2,2.75922962]
[1754044770304,4.301,3624.3,3624.2,0.6311]
[1754044770510,10.6268,3625.2,3624.7,2.758849]
[1754044770511,0.1376,3625.0,3624.7,2.758849]
[1754044770709,14.301,3625.2,3625.1,2.75854459]
[1754044771011,1.072,3626.2,3625.3,2.75833357]
[1754044771012,4.305,3625.5,3625.3,2.75833357]
[1754044771210,4.305,3625.5,3625.4,0.6311]
[1754044771506,0.1376,3625.7,3625.4,0.6311]
[1754044771707,0.1376,3625.7,3625.4,3.38938189]
[1754044771943,4.305,3625.6,3625.1,0.60608544]
[1754044772246,4.305,3625.6,3625.3,2.7583317]
[1754044772406,4.305,3625.6,3625.5,2.75824024]
[1754044772606,4.305,3625.6,3625.4,0.6311]
[1754044773349,4.305,3625.6,3625.1,0.5785]
[1754044773643,4.305,3625.6,3625.5,3.38934024]
[1754044773852,4.305,3625.6,3625.5,3.83024024]
[1754044774410,0.1376,3626.1,3625.8,2.75797945]
[1754044774743,3.82940997,3626.6,3625.5,1.072]
[1754044775058,4.821541,3626.5,3625.5,0.6311]
[1754044775273,0.1376,3626.3,3625.8,2.89560122]
[1754044775566,0.1376,3626.3,3625.8,0.1376]
[1754044775768,4.3,3626.5,3626.4,2.75754425]
[1754044775972,4.3,3626.5,3626.2,2.75768466]
[1754044776472,4.3,3626.5,3626.1,3.52646479]
[1754044776654,4.3,3626.5,3626.2,2.75770779]
[1754044776964,4.3,3626.5,3626.1,0.7687]
[1754044777165,4.3,3626.5,3626.2,2.75769771]
[1754044777335,4.3,3626.5,3626.1,2.89535999]
[1754044777864,0.1376,3626.7,3626.2,2.75769635]
[1754044777865,4.299,3626.4,3626.2,2.75769635]
[1754044778066,4.299,3626.4,3626.1,0.1376]
[1754044778430,4.299,3626.4,3626.1,2.89537295]
[1754044778629,4.299,3626.4,3626.1,2.89536188]
[1754044779268,4.299,3626.4,3625.8,3.0]
[1754044779269,1.072,3626.3,3625.8,3.0]
[1754044779470,4.4366,3626.4,3625.8,0.1376]
[1754044779631,1.072,3626.2,3625.8,0.1376]
[1754044780156,1.072,3626.1,3625.7,3.0]
[1754044780341,1.072,3626.0,3625.7,3.0]
[1754044780746,1.072,3626.0,3625.5,3.0]
[1754044780966,4.4336,3625.9,3625.7,3.0]
[1754044781346,4.4336,3625.9,3625.4,3.1376]
[1754044781575,4.4336,3625.9,3625.4,2.8959094]
[1754044781771,4.4336,3625.9,3625.8,2.75801202]
[1754044781772,4.296,3625.9,3625.8,2.75801202]
[1754044782076,0.6268,3626.6,3626.2,2.75770779]
[1754044782077,4.294,3626.3,3626.2,2.75770779]
[1754044782664,4.294,3626.3,3626.2,3.38880779]
[1754044783275,4.294,3626.3,3626.2,2.75770779]
[1754044785342,4.294,3626.3,3626.1,0.1376]
[1754044785578,0.1376,3626.6,3626.2,2.75770779]
[1754044785777,0.1376,3626.6,3626.5,2.75744205]
[1754044785778,4.29,3626.6,3626.5,2.75744205]
[1754044785945,4.29,3626.6,3626.4,2.75754491]
[1754044787344,2.75688788,3627.3,3626.3,0.1376]
[1754044787345,0.6204,3627.3,3626.7,2.75725159]
[1754044787653,0.6204,3627.3,3626.6,2.75737962]
[1754044787654,0.1376,3626.9,3626.6,2.75737962]
[1754044787850,0.1376,3626.9,3626.7,2.75732717]
[1754044788062,0.1376,3626.9,3626.6,3.32600135]
[1754044788063,4.288,3626.8,3626.6,3.32600135]
[1754044788268,4.288,3626.8,3626.6,2.75740135]
[1754044788444,4.288,3626.8,3626.7,2.75732759]
[1754044788847,4.288,3626.8,3626.3,3.46375986]
[1754044789147,4.288,3626.8,3626.4,3.3261557]
[1754044789582,4.288,3626.8,3626.5,2.75743493]
[1754044789777,4.288,3626.8,3626.4,2.7575448]
[1754044790180,4.288,3626.8,3626.3,0.1376]
[1754044790383,0.1376,3626.9,3626.6,2.7574005]
[1754044790681,4.287,3626.7,3626.4,2.75750945]
[1754044790890,4.9074,3626.7,3626.3,0.1376]
[1754044791187,4.9074,3626.7,3626.5,2.75747966]
[1754044791351,4.287,3626.7,3626.4,2.75752918]
[1754044791855,4.287,3626.7,3626.3,3.1376]
[1754044792058,4.287,3626.7,3626.6,2.75740362]
[1754044792257,0.1376,3627.0,3626.7,2.75730598]
[1754044792648,0.1376,3627.0,3626.9,2.75717554]
[1754044792849,0.1376,3627.0,3626.8,0.5686]
[1754044793047,1.0543,3627.0,3626.8,3.0]
[1754044793296,0.6204,3627.0,3626.7,0.1376]
[1754044793583,4.283,3627.2,3626.9,2.75717554]
[1754044793786,4.283,3627.2,3627.1,2.75702351]
[1754044793953,4.283,3627.2,3627.1,3.32562351]
[1754044795404,0.1376,3627.6,3627.2,2.75687235]
[1754044795551,4.284,3627.5,3627.2,2.75687235]
[1754044795752,4.284,3627.5,3627.1,3.32561382]
[1754044796379,4.284,3627.5,3627.1,3.32560723]
[1754044796593,4.284,3627.5,3627.1,0.5686]
[1754044796885,4.284,3627.5,3627.0,2.89464965]
[1754044796886,1.0543,3627.5,3627.0,2.89465172]
[1754044797286,1.0543,3627.5,3627.1,2.75701737]
[1754044797588,2.9,3627.4,3627.2,2.75693533]
[1754044797796,2.9,3627.4,3627.3,3.3254715]
[1754044798016,2.9,3627.4,3627.3,3.9168715]
[1754044798997,0.1376,3627.9,3627.8,2.75649153]
[1754044799294,4.281,3627.9,3627.8,2.75649153]
[1754044799594,0.1376,3628.3,3627.8,3.91649153]
[1754044799797,4.281,3628.2,3628.1,2.7562636]
[1754044799973,4.281,3628.2,3628.0,2.75630864]
[1754044800170,4.281,3628.2,3627.8,0.1376]
[1754044800498,3.0376,3628.3,3627.6,0.16516643]
[1754044800661,7.18,3628.3,3627.9,0.7062]
[1754044800859,7.18,3628.3,3627.9,0.1376]
[1754044800860,0.4339,3628.2,3627.9,0.1376]
[1754044801097,3.81057182,3628.1,3627.4,0.1376]
[1754044801271,0.1376,3628.0,3627.7,2.75651157]
[1754044801467,4.28,3627.9,3627.7,2.75651157]
[1754044801878,4.28,3627.9,3627.6,2.75661277]
[1754044802095,4.7139,3627.9,3627.4,2.89438235]
[1754044802296,1.0543,3627.8,3627.5,3.0]
[1754044802897,1.0543,3627.7,3627.5,3.0]
[1754044803102,4.28,3627.9,3627.6,2.75664351]
[1754044803268,7.3156,3628.3,3628.1,2.75624528]
[1754044803475,7.3156,3628.3,3627.9,2.75641555]
[1754044803668,7.3156,3628.3,3628.0,2.75631714]
[1754044803880,7.3156,3628.3,3628.0,0.5686]
[1754044804198,8.3699,3628.3,3627.8,2.89406386]
[1754044804500,2.9,3628.3,3628.2,2.75618764]
[1754044804701,2.9,3628.3,3628.2,3.32478764]
[1754044805000,2.9,3628.3,3628.2,2.75618764]
[1754044805205,8.2323,3628.3,3627.2,4.278]
[1754044805406,0.1376,3628.1,3627.5,3.0]
[1754044805607,1.87753,3628.2,3627.8,3.0]
[1754044805771,1.0543,3628.1,3627.8,3.0]
[1754044805964,0.1376,3627.9,3627.7,3.0]
[1754044806170,0.1376,3627.9,3627.3,3.7062]
[1754044806372,2.9,3628.3,3627.8,2.75649153]
[1754044806599,4.279,3628.2,3627.6,0.1376]
[1754044806772,0.1376,3628.1,3627.7,2.7565171]
[1754044806967,0.1376,3628.1,3628.0,2.75633958]
[1754044807174,4.279,3628.2,3627.9,0.1376]
[1754044807374,2.9,3628.3,3627.9,0.1376]
[1754044807609,2.9,3628.3,3627.9,2.89398543]
[1754044808006,0.4339,3628.2,3627.9,0.1376]
[1754044808307,0.6204,3628.2,3627.9,0.1376]
[1754044808472,0.4339,3628.1,3627.9,0.1376]
[1754044809103,1.0543,3628.1,3627.8,2.7564269]
[1754044809308,2.9,3628.0,3627.7,0.1376]
[1754044809510,4.0919,3628.0,3627.5,3.1376]
[1754044810009,4.0919,3628.0,3627.8,3.0]
[1754044810406,3.4715,3628.0,3627.7,3.0]
[1754044810570,3.4715,3628.0,3627.7,2.75655846]
[1754044810778,0.1376,3628.0,3627.6,3.02756643]
[1754044811094,0.1376,3628.0,3627.9,2.75641555]
[1754044811295,3.3339,3628.6,3627.9,2.75641555]
[1754044811296,4.28,3628.5,3628.1,2.75619973]
[1754044811472,0.1376,3628.4,3628.1,0.5686]
[1754044811674,0.1376,3628.4,3628.2,2.75612435]
[1754044812012,0.1376,3628.4,3628.2,0.5686]
[1754044812304,0.1376,3628.4,3628.0,2.75631422]
[1754044812674,0.1376,3628.4,3627.9,0.1376]
[1754044812875,0.5715,3628.4,3627.9,2.89398824]
[1754044813071,0.5715,3628.4,3628.0,2.75633329]
[1754044813278,1.0543,3628.3,3627.9,0.1376]
[1754044813577,0.1376,3628.0,3627.6,2.75664273]
[1754044813783,1.0543,3627.9,3627.6,2.75664273]
[1754044813984,1.0543,3627.9,3627.6,3.0]
[1754044814191,1.0543,3627.8,3627.6,3.0]
[1754044814511,1.0543,3627.8,3627.7,2.75656752]
[1754044814711,0.1376,3628.0,3627.7,2.75656242]
[1754044814909,0.1376,3628.0,3627.6,5.7565845]
[1754044815113,4.278,3628.5,3627.7,2.06718412]
[1754044815415,0.1376,3628.4,3628.0,2.75631281]
[1754044815614,1.0543,3628.3,3627.9,0.1376]
[1754044815914,1.0543,3628.2,3627.9,0.1376]
[1754044816115,1.0543,3628.1,3627.4,4.278]
[1754044816283,0.1376,3628.0,3627.6,2.75657605]
[1754044816484,0.1376,3628.0,3627.5,3.1376]
[1754044816777,0.1376,3627.7,3627.5,3.0]
[1754044817293,1.1521,3627.7,3627.5,3.0]
[1754044817813,1.1521,3627.7,3627.5,2.75671481]
[1754044818111,1.1521,3627.7,3627.4,5.75677396]
[1754044818302,1.1521,3627.7,3627.5,2.75671513]
[1754044818500,1.1521,3627.7,3627.4,5.75676608]
[1754044819013,1.1521,3627.7,3627.5,2.75670076]
[1754044819225,0.1376,3627.7,3627.6,2.75664351]
[1754044819732,2.9,3628.0,3627.8,2.75645963]
[1754044820078,2.9,3628.0,3627.9,2.75641555]
[1754044820311,2.9,3628.0,3627.7,2.75650086]
[1754044820514,2.9,3628.0,3627.8,2.75649057]
[1754044821221,2.9,3628.0,3627.9,2.75641555]
[1754044821604,0.1376,3628.4,3627.9,0.7039]
[1754044821807,0.1376,3628.4,3628.0,3.32263958]
[1754044822889,1.1521,3628.4,3627.9,2.8939866]
[1754044823090,0.717,3628.4,3627.9,2.8939866]
[1754044823291,1.0145,3628.3,3627.9,2.8939866]
[1754044823621,0.1376,3628.4,3628.1,2.7562564]
[1754044824524,0.5727,3628.4,3627.9,2.89400831]
[1754044824714,0.717,3628.4,3627.9,0.1376]
[1754044825022,1.0145,3628.3,3627.9,0.1376]
[1754044826036,0.1376,3628.4,3628.1,2.7562628]
[1754044826423,0.1376,3628.4,3628.0,2.75630752]
[1754044826609,0.1376,3628.4,3627.9,0.7039]
[1754044826806,0.1376,3628.4,3628.0,2.7562945]
[1754044827034,2.9,3628.3,3628.0,2.7562945]
[1754044827211,2.9,3628.3,3627.9,0.7039]
[1754044827807,2.9,3628.3,3628.0,2.75630937]
[1754044828547,2.9,3628.3,3628.2,2.75618764]
[1754044828745,2.9,3628.3,3628.2,3.32248764]
[1754044828904,2.9,3628.8,3628.7,2.75580786]
[1754044829098,4.271,3629.2,3628.8,2.75573192]
[1754044829299,4.271,3629.2,3628.2,4.93615272]
[1754044829497,4.271,3629.2,3628.4,2.75599182]
[1754044829498,1.0145,3629.1,3628.4,2.75599182]
[1754044829734,0.1376,3629.0,3628.5,2.75591351]
[1754044830045,0.1376,3629.0,3628.4,0.1376]
[1754044830332,1.1521,3628.8,3628.4,0.20441653]
[1754044830531,1.0145,3628.7,3628.4,2.7560255]
[1754044830738,1.0145,3628.7,3628.3,5.89367898]
[1754044830939,0.4351,3628.7,3628.4,2.75602005]
[1754044831297,0.4351,3628.7,3628.3,3.1376]
[1754044831499,0.1376,3628.4,3628.3,0.21010972]
[1754044831728,2.25990005,3628.4,3628.0,2.75628188]
[1754044831934,0.1376,3628.2,3627.8,3.0]
[1754044832326,0.1376,3628.2,3628.0,2.75631301]
[1754044832545,0.1376,3628.2,3627.8,3.5663]
[1754044832909,0.1376,3628.2,3627.9,2.75641555]
[1754044833414,0.717,3628.2,3627.9,0.21215927]
[1754044833620,1.5133,3628.1,3626.9,4.271]
[1754044833849,0.56,3628.9,3626.9,4.271]
[1754044833850,0.1376,3627.8,3627.1,0.7039]
[1754044834008,0.1376,3627.8,3627.6,2.75662532]
[1754044834206,0.1376,3627.8,3627.7,0.5663]
[1754044834631,7.171,3628.0,3627.7,1.0014]
[1754044834828,2.9,3628.0,3627.9,2.75641555]
[1754044835110,2.9,3628.0,3627.9,7.42300738]
[1754044835955,4.4086,3628.5,3627.9,4.66659183]
[1754044836153,4.271,3628.5,3628.1,2.75626125]
[1754044836357,4.271,3628.5,3628.2,2.75618361]
[1754044836554,3.0376,3628.6,3628.2,2.75618361]
[1754044836856,2.9,3628.5,3628.4,5.75603571]
[1754044837169,2.9,3628.5,3628.4,6.75743571]
[1754044837326,2.9,3628.5,3628.4,6.89503571]
[1754044837524,2.9,3629.4,3628.8,5.75573192]
[1754044837727,2.9,3629.4,3628.8,6.55528031]
[1754044838061,2.9,3629.4,3628.8,7.69428031]
[1754044839558,2.9,3629.4,3628.8,7.89748609]
[1754044839758,0.1376,3629.8,3628.8,7.89748609]
[1754044840461,0.717,3629.8,3628.8,7.89748609]
[1754044841263,0.1376,3629.8,3628.8,11.73338609]
[1754044841440,1.0145,3629.4,3628.8,10.3675377]
[1754044841637,1.1521,3629.8,3628.8,11.3689377]
[1754044841840,0.01,3629.9,3628.8,11.3689377]
[1754044842049,1e-08,3628.9,3628.8,11.9189377]
[1754044848371,0.01,3630.9,3630.2,3.0]
[1754044848668,0.438,3630.8,3630.5,0.1376]
[1754044848876,0.01,3630.9,3630.7,2.7542898]
[1754044849347,0.01,3630.9,3630.6,2.75434514]
[1754044849546,1.0186,3630.8,3630.6,2.75434514]
[1754044849744,0.01,3630.9,3630.6,2.75434514]
[1754044849745,1.0186,3630.7,3630.6,2.75434514]
[1754044850158,1.0186,3630.7,3630.5,3.1376]
[1754044850386,1.0186,3630.6,3630.3,3.0]
[1754044850798,1.0186,3630.5,3630.1,4.4026]
[1754044851099,1.1562,3630.4,3630.1,4.265]
[1754044851296,1.0186,3630.3,3629.9,7.265]
[1754044851499,1.0186,3630.2,3629.8,4.265]
[1754044851658,0.1376,3630.4,3629.8,4.265]
[1754044851862,0.1376,3630.4,3629.9,3.0]
[1754044852192,1.1562,3630.4,3630.0,2.75477308]
[1754044852405,1.0186,3630.3,3630.0,2.75477308]
[1754044852601,0.1376,3630.4,3629.9,3.1376]
[1754044852602,1.0186,3630.2,3629.9,3.1376]
[1754044852774,1.0186,3630.1,3629.9,3.1376]
[1754044852969,1.0186,3630.0,3629.9,3.1376]
[1754044853774,1.0186,3630.0,3629.9,5.89249228]
[1754044854503,0.7182,3630.4,3630.3,2.75459328]
[1754044854671,0.1376,3630.5,3630.1,2.75467433]
[1754044854881,1.0186,3630.4,3630.1,2.75467433]
[1754044855394,1.0186,3630.3,3630.0,7.01980383]
[1754044855764,1.0186,3630.3,3630.1,2.75471527]
[1754044855956,1.0186,3630.3,3630.0,7.0197978]
[1754044856362,1.0186,3630.3,3630.1,2.75473012]
[1754044857014,1.0186,3630.3,3630.0,7.01981545]
[1754044857294,0.1376,3630.6,3630.0,6.01674888]
[1754044857593,0.1376,3630.6,3630.1,0.1376]
[1754044857801,0.7182,3630.6,3630.2,7.01462455]
[1754044858007,1.0186,3630.5,3630.2,7.01462455]
[1754044858306,0.1376,3630.6,3630.2,4.26]
[1754044858506,0.1376,3630.6,3630.3,2.75453652]
[1754044858673,0.1376,3630.6,3630.2,4.81592489]
[1754044858876,0.1376,3630.6,3630.3,2.75452513]
[1754044859085,1.1562,3630.6,3630.3,2.75452513]
[1754044859285,0.1376,3630.6,3630.3,2.75452513]
[1754044859587,0.1376,3630.6,3630.3,1.04627871]
[1754044859784,0.1376,3630.6,3630.2,4.81592489]
[1754044860107,0.438,3630.5,3630.3,2.75456439]
[1754044860314,1.0186,3630.4,3630.2,4.26]
[1754044860496,1.0186,3630.3,3630.2,4.26]
[1754044860687,1.0186,3630.3,3630.2,3.0]
[1754044860890,1.0186,3630.3,3630.1,0.1376]
[1754044861200,1.0186,3630.2,3630.1,0.1376]
[1754044861372,0.1376,3630.5,3630.0,4.3966]
[1754044861800,0.1376,3630.5,3630.2,2.75466401]
[1754044861998,1.1562,3630.5,3630.1,2.75471451]
[1754044862211,1.0186,3630.4,3630.1,2.75471451]
[1754044862414,1.0186,3630.3,3629.9,3.0]
[1754044862575,1.0186,3630.2,3629.9,3.1376]
[1754044863332,2.75483872,3630.0,3629.2,2.75538068]
[1754044863620,0.1376,3629.7,3629.3,3.0]
[1754044863916,0.1376,3630.5,3629.9,0.1376]
[1754044864087,2.9,3630.6,3630.3,2.75457039]
[1754044864280,3.0376,3630.6,3630.1,0.1376]
[1754044864473,0.1376,3630.6,3630.4,2.75445489]
[1754044864712,0.1376,3630.6,3630.4,2.75446021]
[1754044865076,0.1376,3630.6,3630.3,3.34466979]
[1754044865276,0.1376,3630.6,3630.3,2.75456979]
[1754044865692,0.1376,3630.6,3630.4,2.75451125]
[1754044866227,0.1376,3630.6,3630.3,2.75457249]
[1754044866404,0.1376,3630.6,3630.1,0.7277]
[1754044866584,0.1376,3630.6,3630.5,2.75444153]
[1754044866977,1.0286,3630.9,3630.2,0.96287]
[1754044867182,0.1376,3630.8,3630.4,2.75445136]
[1754044867710,0.1376,3630.8,3630.4,2.75447006]
[1754044867911,0.1376,3630.8,3630.2,3.5901]
[1754044868111,0.1376,3630.8,3630.5,2.7543796]
[1754044868316,0.1376,3630.8,3630.4,2.754497]
[1754044868511,0.1376,3630.8,3630.4,0.5901]
[1754044868818,0.1376,3630.8,3630.4,1.43365]
[1754044869117,0.1376,3630.8,3630.6,2.75436377]
[1754044869704,0.1376,3630.8,3630.7,2.7542898]
[1754044869879,0.01,3630.9,3630.8,2.75421394]
[1754044870078,0.01,3630.9,3630.7,3.34436836]
[1754044870319,0.01,3630.9,3630.7,2.75426836]
[1754044870518,0.01,3630.9,3630.7,0.75287697]
[1754044870722,0.01,3630.9,3630.8,2.75421394]
[1754044871020,0.01,3630.9,3630.7,2.75426275]
[1754044871515,0.01,3630.9,3630.6,0.1376]
[1754044871721,0.01,3630.9,3630.8,2.75421394]
[1754044872235,0.01,3630.9,3630.6,2.89195506]
[1754044872398,0.5906,3630.9,3630.6,0.1376]
[1754044872585,1.0186,3630.8,3630.6,0.1376]
[1754044872788,1.0186,3630.8,3630.6,2.89195623]
[1754044872990,1.0186,3630.7,3630.3,5.75451801]
[1754044873313,2.75461286,3630.3,3629.7,0.1376]
[1754044873512,4.04878804,3630.2,3629.1,4.259]
[1754044873726,0.1376,3629.8,3629.4,2.75521572]
[1754044874045,0.1376,3629.8,3629.6,2.75507981]
[1754044874214,0.1376,3629.8,3629.5,2.75517394]
[1754044874798,4.259,3630.2,3629.7,2.75504862]
[1754044875114,0.1376,3630.1,3629.8,0.5901]
[1754044875336,0.1376,3630.1,3629.7,3.13717892]
[1754044875640,0.1376,3630.1,3629.8,2.75496838]
[1754044875844,0.1376,3630.1,3629.9,2.75487812]
[1754044876003,2.9,3630.0,3629.9,3.34497812]
[1754044876210,3.4806,3630.0,3629.8,0.1376]
[1754044876509,1.0186,3629.9,3629.7,2.75503376]
[1754044876939,0.438,3629.9,3629.8,2.75497272]
[1754044877117,2.9,3630.0,3629.8,2.75497272]
[1754044877436,2.9,3630.0,3629.8,2.75496213]
[1754044877639,3.9384,3630.0,3629.9,2.75489682]
[1754044877940,2.9,3630.0,3629.9,2.75489682]
[1754044878242,2.9,3630.0,3629.9,3.97447985]
[1754044878621,0.01,3630.9,3629.9,4.21958303]
[1754044878924,0.01,3630.9,3630.8,2.75421394]
[1754044879230,0.01,3630.9,3630.7,3.1376]
[1754044879543,0.01,3630.9,3630.8,3.34951394]
[1754044880035,0.01,3630.9,3630.8,2.75421394]
[1754044881425,0.01,3630.9,3630.7,3.1376]
[1754044881626,1.0484,3630.9,3630.7,3.20929548]
[1754044881915,1.0384,3630.8,3630.7,3.20929548]
[1754044882216,1.0384,3630.8,3630.4,3.0]
[1754044882422,0.1376,3630.6,3630.1,2.89232715]
[1754044882720,1.0384,3630.5,3629.4,0.5953]
[1754044882932,0.1376,3630.2,3629.8,2.75496841]
[1754044883258,0.1376,3630.2,3629.5,2.75520044]
[1754044883259,1.0384,3630.1,3629.5,2.75520044]
[1754044883458,0.1376,3630.0,3629.5,0.1376]
[1754044883756,0.4712,3629.9,3629.5,0.1376]
[1754044883909,0.1376,3630.0,3629.5,0.1376]
[1754044884246,1.0384,3629.8,3629.5,0.1376]
[1754044884447,1.0384,3629.8,3629.5,2.89274132]
[1754044884823,0.4712,3629.8,3629.5,2.89274132]
[1754044885220,0.4712,3629.8,3629.5,0.1376]
[1754044885452,4.259,3630.3,3628.8,4.46220578]
[1754044885453,0.1376,3629.6,3628.8,0.20320578]
[1754044885632,17.68287909,3628.9,3626.6,2.75737218]
[1754044885839,0.55,3628.7,3626.8,0.5953]
[1754044886148,0.1376,3627.6,3627.2,2.7569475]
[1754044886326,0.1376,3627.6,3627.2,3.3522475]
[1754044886654,0.1376,3627.6,3627.2,0.5953]
[1754044886949,1.0384,3627.5,3627.1,0.1376]
[1754044887112,4.278,3627.7,3626.8,2.75718968]
[1754044887113,1.0384,3627.4,3626.8,2.75718968]